[Event "Titled Tuesday Blitz April 25 Early 2023"]
[White "Kubicka, Anna"]
[Black "Hambleton, Aman"]
[WhiteFideId "1152254"]
[BlackFideId "2606577"]
[WhiteElo "2144"]
[BlackElo "2511"]
[Result "0-1"]
[Round "06"]
[TimeControl "180+2"]
[Date "2023.04.25"]
[WhiteClock "0:00:12"]
[BlackClock "0:00:06"]

1. e4 {[%clk 0:02:56]}  b6 {[%clk 0:02:59]} 2. d4 {[%clk 0:02:55]}  Bb7 {[%clk 0:02:59]} 3. Nc3 {[%clk 0:02:55]}  e6 {[%clk 0:03:00]} 4. Nf3 {[%clk 0:02:52]}  Bb4 {[%clk 0:02:59]} 5. Bd3 {[%clk 0:02:52]}  Nf6 {[%clk 0:03:00]} 6. Qe2 {[%clk 0:02:51]}  d5 {[%clk 0:03:00]} 7. e5 {[%clk 0:02:50]}  Ne4 {[%clk 0:03:00]} 8. Bd2 {[%clk 0:02:45]}  Bxc3 {[%clk 0:03:00]} 9. bxc3 {[%clk 0:02:43]}  Nc6 {[%clk 0:03:01]} 10. O-O {[%clk 0:02:42]}  h6 {[%clk 0:03:00]} 11. h3 {[%clk 0:02:41]}  Na5 {[%clk 0:03:00]} 12. Nh2 {[%clk 0:02:39]}  Qd7 {[%clk 0:02:58]} 13. Rfe1 {[%clk 0:02:24]}  O-O-O {[%clk 0:02:51]} 14. f3 {[%clk 0:02:19]}  Nxd2 {[%clk 0:02:41]} 15. Qxd2 {[%clk 0:02:20]}  Qa4 {[%clk 0:02:25]} 16. Reb1 {[%clk 0:02:05]}  Qa3 {[%clk 0:01:38]} 17. Nf1 {[%clk 0:01:57]}  c5 {[%clk 0:01:25]} 18. Ne3 {[%clk 0:01:46]}  Rd7 {[%clk 0:01:06]} 19. Bb5 {[%clk 0:01:42]}  Rc7 {[%clk 0:01:05]} 20. Bd3 {[%clk 0:01:08]}  cxd4 {[%clk 0:00:27]} 21. cxd4 {[%clk 0:01:08]}  Qc3 {[%clk 0:00:28]} 22. Qxc3 {[%clk 0:01:08]}  Rxc3 {[%clk 0:00:29]} 23. Nd1 {[%clk 0:00:56]}  Ra3 {[%clk 0:00:24]} 24. c3 {[%clk 0:00:53]}  Kd7 {[%clk 0:00:16]} 25. Rb2 {[%clk 0:00:51]}  Rc8 {[%clk 0:00:15]} 26. f4 {[%clk 0:00:50]}  Nc4 {[%clk 0:00:11]} 27. Rf2 {[%clk 0:00:38]}  f5 {[%clk 0:00:11]} 28. exf6 {[%clk 0:00:34]}  gxf6 {[%clk 0:00:12]} 29. Rc1 {[%clk 0:00:22]}  Nd6 {[%clk 0:00:07]} 30. Rcc2 {[%clk 0:00:19]}  Ba6 {[%clk 0:00:06]} 31. Bxa6 {[%clk 0:00:17]}  Rxa6 {[%clk 0:00:07]} 32. Rf3 {[%clk 0:00:15]}  Nf5 {[%clk 0:00:03]} 33. Re2 {[%clk 0:00:13]}  Ra3 {[%clk 0:00:03]} 34. Ne3 {[%clk 0:00:12]}  Nxe3 {[%clk 0:00:02]} 35. Rexe3 {[%clk 0:00:13]}  Rc6 {[%clk 0:00:03]} 36. f5 {[%clk 0:00:12]}  Rxa2 {[%clk 0:00:03]} 37. fxe6+ {[%clk 0:00:12]}  Rxe6 {[%clk 0:00:03]} 38. Rxe6 {[%clk 0:00:11]}  Kxe6 {[%clk 0:00:04]} 39. Re3+ {[%clk 0:00:11]}  Kf7 {[%clk 0:00:05]} 40. Kh2 {[%clk 0:00:10]}  Rc2 {[%clk 0:00:04]} 41. Kg3 {[%clk 0:00:10]}  a5 {[%clk 0:00:04]} 42. Kf3 {[%clk 0:00:10]}  a4 {[%clk 0:00:04]} 43. Re1 {[%clk 0:00:06]}  Rxc3+ {[%clk 0:00:04]} 44. Kf4 {[%clk 0:00:06]}  b5 {[%clk 0:00:03]} 45. Rb1 {[%clk 0:00:07]}  Rb3 {[%clk 0:00:03]} 46. Rc1 {[%clk 0:00:06]}  a3 {[%clk 0:00:03]} 47. Rc7+ {[%clk 0:00:06]}  Ke6 {[%clk 0:00:04]} 48. Rc6+ {[%clk 0:00:07]}  Kd7 {[%clk 0:00:04]} 49. Ra6 {[%clk 0:00:07]}  b4 {[%clk 0:00:04]} 50. Kf5 {[%clk 0:00:07]}  Rb2 {[%clk 0:00:04]} 51. g4 {[%clk 0:00:08]}  a2 {[%clk 0:00:04]} 52. Kxf6 {[%clk 0:00:08]}  b3 {[%clk 0:00:04]} 53. Kg6 {[%clk 0:00:08]}  Rb1 {[%clk 0:00:05]} 54. Ra7+ {[%clk 0:00:08]}  Kc6 {[%clk 0:00:05]} 55. Ra6+ {[%clk 0:00:08]}  Kb7 {[%clk 0:00:05]} 56. Ra3 {[%clk 0:00:08]}  a1=Q {[%clk 0:00:06]} 57. Rxa1 {[%clk 0:00:08]}  Rxa1 {[%clk 0:00:07]} 58. Kxh6 {[%clk 0:00:09]}  Rd1 {[%clk 0:00:07]} 59. h4 {[%clk 0:00:10]}  Rxd4 {[%clk 0:00:08]} 60. h5 {[%clk 0:00:10]}  Rxg4 {[%clk 0:00:07]} 61. Kh7 {[%clk 0:00:10]}  Kc7 {[%clk 0:00:05]} 62. h6 {[%clk 0:00:11]}  b2 {[%clk 0:00:05]} 63. Kh8 {[%clk 0:00:11]}  b1=Q {[%clk 0:00:05]} 64. h7 {[%clk 0:00:12]}  Qb8# {[%clk 0:00:06]} 0-1


[Site "https://www.chess.com"]

[Event "Titled Tuesday Blitz April 25 Early 2023"]
[White "Kuzmin, Roman"]
[Black "Goltsev, Dmitry"]
[WhiteFideId "44134932"]
[BlackFideId "24176710"]
[WhiteElo "2192"]
[BlackElo "2336"]
[Result "1-0"]
[Round "06"]
[TimeControl "180+2"]
[Date "2023.04.25"]
[WhiteClock "0:00:07"]
[BlackClock "0:00:25"]

1. e4 {[%clk 0:03:00]}  e6 {[%clk 0:03:00]} 2. d4 {[%clk 0:03:00]}  d5 {[%clk 0:03:01]} 3. Nc3 {[%clk 0:03:01]}  c5 {[%clk 0:03:01]} 4. Nf3 {[%clk 0:02:43]}  Nf6 {[%clk 0:03:01]} 5. exd5 {[%clk 0:02:35]}  exd5 {[%clk 0:03:02]} 6. Bb5+ {[%clk 0:02:35]}  Nc6 {[%clk 0:03:02]} 7. O-O {[%clk 0:02:35]}  Be7 {[%clk 0:03:02]} 8. dxc5 {[%clk 0:02:30]}  Bxc5 {[%clk 0:03:03]} 9. Be3 {[%clk 0:02:11]}  Bxe3 {[%clk 0:03:00]} 10. Re1 {[%clk 0:02:12]}  d4 {[%clk 0:02:58]} 11. Nxd4 {[%clk 0:02:06]}  O-O {[%clk 0:02:53]} 12. fxe3 {[%clk 0:01:22]}  Ne5 {[%clk 0:02:51]} 13. h3 {[%clk 0:01:20]}  a6 {[%clk 0:02:47]} 14. Bd3 {[%clk 0:01:19]}  Re8 {[%clk 0:02:44]} 15. Nf3 {[%clk 0:01:11]}  Nc6 {[%clk 0:02:41]} 16. Qd2 {[%clk 0:01:02]}  Qb6 {[%clk 0:02:40]} 17. b3 {[%clk 0:00:52]}  Bd7 {[%clk 0:02:37]} 18. Kh1 {[%clk 0:00:47]}  Rad8 {[%clk 0:02:35]} 19. e4 {[%clk 0:00:46]}  Bc8 {[%clk 0:02:29]} 20. Rad1 {[%clk 0:00:46]}  h6 {[%clk 0:02:25]} 21. Nd5 {[%clk 0:00:46]}  Nxd5 {[%clk 0:02:22]} 22. exd5 {[%clk 0:00:47]}  Ne7 {[%clk 0:02:08]} 23. c4 {[%clk 0:00:44]}  Qd6 {[%clk 0:02:02]} 24. Qf2 {[%clk 0:00:35]}  Kh8 {[%clk 0:01:51]} 25. Ne5 {[%clk 0:00:33]}  Rf8 {[%clk 0:01:46]} 26. Nxf7+ {[%clk 0:00:27]}  Kg8 {[%clk 0:01:46]} 27. Nxd6 {[%clk 0:00:28]}  Rxf2 {[%clk 0:01:44]} 28. Rxe7 {[%clk 0:00:28]}  Rxd6 {[%clk 0:01:45]} 29. Re8+ {[%clk 0:00:28]}  Rf8 {[%clk 0:01:45]} 30. Rxf8+ {[%clk 0:00:20]}  Kxf8 {[%clk 0:01:46]} 31. Re1 {[%clk 0:00:21]}  b6 {[%clk 0:01:39]} 32. Kg1 {[%clk 0:00:21]}  Bd7 {[%clk 0:01:35]} 33. Kf2 {[%clk 0:00:21]}  g5 {[%clk 0:01:31]} 34. Ke3 {[%clk 0:00:21]}  Ke7 {[%clk 0:01:28]} 35. Kd4+ {[%clk 0:00:21]}  Kd8 {[%clk 0:01:26]} 36. Ke5 {[%clk 0:00:20]}  Kc7 {[%clk 0:01:26]} 37. Rf1 {[%clk 0:00:21]}  Be8 {[%clk 0:01:24]} 38. Rf6 {[%clk 0:00:19]}  Rd8 {[%clk 0:01:22]} 39. Rxh6 {[%clk 0:00:19]}  Bd7 {[%clk 0:01:22]} 40. b4 {[%clk 0:00:15]}  Re8+ {[%clk 0:01:22]} 41. Kd4 {[%clk 0:00:16]}  Re1 {[%clk 0:01:20]} 42. c5 {[%clk 0:00:16]}  bxc5+ {[%clk 0:01:21]} 43. bxc5 {[%clk 0:00:17]}  Rd1 {[%clk 0:01:21]} 44. Rh7 {[%clk 0:00:17]}  Kd8 {[%clk 0:01:21]} 45. c6 {[%clk 0:00:17]}  Bf5 {[%clk 0:01:20]} 46. Rg7 {[%clk 0:00:10]}  Bxd3 {[%clk 0:01:14]} 47. Ke5 {[%clk 0:00:10]}  Bc4 {[%clk 0:01:09]} 48. Rd7+ {[%clk 0:00:07]}  Kc8 {[%clk 0:01:02]} 49. Kf5 {[%clk 0:00:07]}  Bxd5 {[%clk 0:00:59]} 50. Kxg5 {[%clk 0:00:06]}  Rd2 {[%clk 0:00:54]} 51. g4 {[%clk 0:00:06]}  a5 {[%clk 0:00:50]} 52. h4 {[%clk 0:00:07]}  a4 {[%clk 0:00:47]} 53. h5 {[%clk 0:00:08]}  a3 {[%clk 0:00:46]} 54. h6 {[%clk 0:00:08]}  Rd3 {[%clk 0:00:43]} 55. h7 {[%clk 0:00:07]}  Rh3 {[%clk 0:00:43]} 56. Rxd5 {[%clk 0:00:07]}  Rxh7 {[%clk 0:00:40]} 57. Rd3 {[%clk 0:00:07]}  Ra7 {[%clk 0:00:36]} 58. Rc3 {[%clk 0:00:07]}  Rg7+ {[%clk 0:00:30]} 59. Kh5 {[%clk 0:00:07]}  Rh7+ {[%clk 0:00:29]} 60. Kg6 {[%clk 0:00:07]}  Rh1 {[%clk 0:00:29]} 61. Rxa3 {[%clk 0:00:07]}  Kc7 {[%clk 0:00:29]} 62. Rc3 {[%clk 0:00:07]}  Ra1 {[%clk 0:00:26]} 63. a3 {[%clk 0:00:07]}  Rg1 {[%clk 0:00:25]} 64. g5 {[%clk 0:00:08]}  Rg2 {[%clk 0:00:25]} 65. Kh6 {[%clk 0:00:08]}  Rh2+ {[%clk 0:00:25]} 66. Kg7 {[%clk 0:00:09]}  Rh3 {[%clk 0:00:25]} 67. Rxh3 {[%clk 0:00:07]} 1-0


[Site "https://www.chess.com"]

[Event "Titled Tuesday Blitz April 25 Early 2023"]
[White "Belov, Alexei"]
[Black "Averjanov, Alexey"]
[WhiteFideId "4128206"]
[BlackFideId "14109867"]
[WhiteElo "2505"]
[BlackElo "2689"]
[Result "1-0"]
[Round "06"]
[TimeControl "180+2"]
[Date "2023.04.25"]
[WhiteClock "0:00:46"]
[BlackClock "0:02:00"]

1. e4 {[%clk 0:03:00]}  c6 {[%clk 0:02:59]} 2. d4 {[%clk 0:03:00]}  d5 {[%clk 0:03:00]} 3. Nd2 {[%clk 0:03:00]}  dxe4 {[%clk 0:03:00]} 4. Nxe4 {[%clk 0:03:00]}  Bf5 {[%clk 0:02:59]} 5. Ng3 {[%clk 0:03:00]}  Bg6 {[%clk 0:02:59]} 6. N1e2 {[%clk 0:03:01]}  e6 {[%clk 0:02:56]} 7. c3 {[%clk 0:03:01]}  Bd6 {[%clk 0:02:56]} 8. Nf4 {[%clk 0:03:00]}  Qc7 {[%clk 0:02:55]} 9. Qf3 {[%clk 0:03:00]}  Nf6 {[%clk 0:02:53]} 10. h4 {[%clk 0:03:00]}  Bxf4 {[%clk 0:02:50]} 11. Bxf4 {[%clk 0:02:59]}  Qb6 {[%clk 0:02:50]} 12. b3 {[%clk 0:02:39]}  h6 {[%clk 0:02:47]} 13. h5 {[%clk 0:02:31]}  Bh7 {[%clk 0:02:47]} 14. Bd6 {[%clk 0:02:15]}  Nbd7 {[%clk 0:02:44]} 15. Be2 {[%clk 0:02:05]}  O-O-O {[%clk 0:02:38]} 16. O-O {[%clk 0:02:05]}  c5 {[%clk 0:02:35]} 17. dxc5 {[%clk 0:01:53]}  Nxc5 {[%clk 0:02:36]} 18. Be7 {[%clk 0:01:48]}  Rd2 {[%clk 0:02:32]} 19. Qe3 {[%clk 0:01:35]}  Rd7 {[%clk 0:02:25]} 20. Qxc5+ {[%clk 0:01:31]}  Qxc5 {[%clk 0:02:21]} 21. Bxc5 {[%clk 0:01:31]}  Rd2 {[%clk 0:02:22]} 22. Rfd1 {[%clk 0:01:26]}  Rc2 {[%clk 0:02:21]} 23. Bd4 {[%clk 0:01:23]}  Nd5 {[%clk 0:02:18]} 24. Bd3 {[%clk 0:01:15]}  Bxd3 {[%clk 0:02:16]} 25. Rxd3 {[%clk 0:01:15]}  Nf4 {[%clk 0:02:17]} 26. Rf3 {[%clk 0:01:11]}  Nd5 {[%clk 0:02:12]} 27. Rxf7 {[%clk 0:01:00]}  e5 {[%clk 0:02:12]} 28. Bxe5 {[%clk 0:00:58]}  Re8 {[%clk 0:02:12]} 29. Bxg7 {[%clk 0:00:55]}  Nxc3 {[%clk 0:02:08]} 30. Bxh6 {[%clk 0:00:51]}  Nxa2 {[%clk 0:02:01]} 31. Rf8 {[%clk 0:00:48]}  Rxf8 {[%clk 0:02:00]} 32. Bxf8 {[%clk 0:00:48]}  Nc3 {[%clk 0:02:00]} 33. h6 {[%clk 0:00:46]} 1-0


[Site "https://www.chess.com"]

[Event "Titled Tuesday Blitz April 25 Early 2023"]
[White "Degenbaev, Aziz"]
[Black "Aaditya Dhingra"]
[WhiteFideId "13802640"]
[BlackFideId "25678191"]
[WhiteElo "2152"]
[BlackElo "2083"]
[Result "0-1"]
[Round "06"]
[TimeControl "180+2"]
[Date "2023.04.25"]
[WhiteClock "0:01:56"]
[BlackClock "0:01:39"]

1. e4 {[%clk 0:03:00]}  c6 {[%clk 0:02:58]} 2. d4 {[%clk 0:03:00]}  d5 {[%clk 0:02:58]} 3. e5 {[%clk 0:03:01]}  Bf5 {[%clk 0:02:57]} 4. Nd2 {[%clk 0:03:01]}  e6 {[%clk 0:02:56]} 5. Nb3 {[%clk 0:03:01]}  Nd7 {[%clk 0:02:53]} 6. Nf3 {[%clk 0:03:01]}  h6 {[%clk 0:02:51]} 7. Be2 {[%clk 0:03:01]}  g5 {[%clk 0:02:49]} 8. O-O {[%clk 0:03:01]}  Ne7 {[%clk 0:02:48]} 9. a4 {[%clk 0:03:01]}  Bg6 {[%clk 0:02:43]} 10. a5 {[%clk 0:02:33]}  a6 {[%clk 0:02:42]} 11. Bd2 {[%clk 0:02:20]}  Nf5 {[%clk 0:02:39]} 12. Ne1 {[%clk 0:02:12]}  c5 {[%clk 0:02:33]} 13. c3 {[%clk 0:02:08]}  c4 {[%clk 0:02:31]} 14. Nc1 {[%clk 0:02:07]}  f6 {[%clk 0:02:26]} 15. g4 {[%clk 0:02:07]}  Nh4 {[%clk 0:02:23]} 16. f4 {[%clk 0:02:07]}  gxf4 {[%clk 0:02:22]} 17. Bxf4 {[%clk 0:02:07]}  fxe5 {[%clk 0:02:21]} 18. dxe5 {[%clk 0:02:07]}  Bc5+ {[%clk 0:02:19]} 19. Kh1 {[%clk 0:02:06]}  Be4+ {[%clk 0:02:07]} 20. Nf3 {[%clk 0:02:01]}  O-O {[%clk 0:02:01]} 21. Bg3 {[%clk 0:01:57]}  Nxf3 {[%clk 0:01:47]} 22. Bxf3 {[%clk 0:01:56]}  Rxf3 {[%clk 0:01:45]} 23. Rxf3 {[%clk 0:01:56]}  Qg5 {[%clk 0:01:39]} 0-1


[Site "https://www.chess.com"]

[Event "Titled Tuesday Blitz April 25 Early 2023"]
[White "Erzhanov, Arman"]
[Black "Prohaszka, Peter"]
[WhiteFideId "4138821"]
[BlackFideId "726265"]
[WhiteElo "2138"]
[BlackElo "2626"]
[Result "0-1"]
[Round "06"]
[TimeControl "180+2"]
[Date "2023.04.25"]
[WhiteClock "0:00:11"]
[BlackClock "0:01:13"]

1. e4 {[%clk 0:03:00]}  c6 {[%clk 0:02:58]} 2. d4 {[%clk 0:02:59]}  d5 {[%clk 0:02:58]} 3. exd5 {[%clk 0:03:00]}  cxd5 {[%clk 0:02:43]} 4. c4 {[%clk 0:02:58]}  Nf6 {[%clk 0:02:42]} 5. Nc3 {[%clk 0:02:59]}  Nc6 {[%clk 0:02:43]} 6. Nf3 {[%clk 0:02:59]}  Be6 {[%clk 0:02:43]} 7. Bg5 {[%clk 0:02:48]}  g6 {[%clk 0:02:42]} 8. Bxf6 {[%clk 0:02:43]}  exf6 {[%clk 0:02:43]} 9. c5 {[%clk 0:02:42]}  h5 {[%clk 0:02:42]} 10. Bb5 {[%clk 0:02:35]}  g5 {[%clk 0:02:42]} 11. O-O {[%clk 0:02:33]}  Bg7 {[%clk 0:02:40]} 12. Re1 {[%clk 0:02:31]}  Kf8 {[%clk 0:02:38]} 13. Bxc6 {[%clk 0:02:19]}  bxc6 {[%clk 0:02:38]} 14. Qa4 {[%clk 0:02:20]}  Qc7 {[%clk 0:02:26]} 15. b4 {[%clk 0:02:16]}  h4 {[%clk 0:02:20]} 16. b5 {[%clk 0:02:10]}  g4 {[%clk 0:02:19]} 17. Nd2 {[%clk 0:02:09]}  g3 {[%clk 0:02:17]} 18. fxg3 {[%clk 0:01:57]}  hxg3 {[%clk 0:02:16]} 19. h3 {[%clk 0:01:56]}  Qf4 {[%clk 0:02:08]} 20. Re2 {[%clk 0:01:28]}  Bg4 {[%clk 0:01:47]} 21. Rf1 {[%clk 0:01:09]}  Qh6 {[%clk 0:01:47]} 22. b6 {[%clk 0:00:16]}  Bxe2 {[%clk 0:01:24]} 23. Nxe2 {[%clk 0:00:13]}  Qe3+ {[%clk 0:01:17]} 24. Kh1 {[%clk 0:00:12]}  Qxe2 {[%clk 0:01:16]} 25. b7 {[%clk 0:00:11]}  Rxh3+ {[%clk 0:01:15]} 26. Kg1 {[%clk 0:00:11]}  Qe3+ {[%clk 0:01:13]} 27. Rf2 {[%clk 0:00:11]}  Qxf2# {[%clk 0:01:13]} 0-1


[Site "https://www.chess.com"]

[Event "Titled Tuesday Blitz April 25 Early 2023"]
[White "Williams, Simon K"]
[Black "Karas, Marek"]
[WhiteFideId "404454"]
[BlackFideId "14928558"]
[WhiteElo "2468"]
[BlackElo "2233"]
[Result "1-0"]
[Round "06"]
[TimeControl "180+2"]
[Date "2023.04.25"]
[WhiteClock "0:00:17"]
[BlackClock "0:00:09"]

1. e4 {[%clk 0:03:00]}  e6 {[%clk 0:03:00]} 2. d4 {[%clk 0:02:59]}  d5 {[%clk 0:02:58]} 3. e5 {[%clk 0:02:59]}  c5 {[%clk 0:02:56]} 4. c3 {[%clk 0:02:58]}  Qb6 {[%clk 0:02:55]} 5. Nf3 {[%clk 0:02:58]}  Bd7 {[%clk 0:02:55]} 6. h4 {[%clk 0:02:39]}  h6 {[%clk 0:02:42]} 7. h5 {[%clk 0:02:37]}  Bb5 {[%clk 0:02:38]} 8. c4 {[%clk 0:02:31]}  Bxc4 {[%clk 0:02:31]} 9. Bxc4 {[%clk 0:02:29]}  dxc4 {[%clk 0:02:32]} 10. d5 {[%clk 0:02:27]}  exd5 {[%clk 0:02:27]} 11. Qxd5 {[%clk 0:02:26]}  Ne7 {[%clk 0:02:22]} 12. Qxc4 {[%clk 0:02:25]}  Qb4+ {[%clk 0:02:03]} 13. Qxb4 {[%clk 0:02:24]}  cxb4 {[%clk 0:02:04]} 14. Nbd2 {[%clk 0:02:21]}  Nbc6 {[%clk 0:01:59]} 15. Ne4 {[%clk 0:02:17]}  Nf5 {[%clk 0:01:50]} 16. O-O {[%clk 0:02:09]}  Be7 {[%clk 0:01:44]} 17. Rd1 {[%clk 0:02:04]}  Rd8 {[%clk 0:01:39]} 18. Rxd8+ {[%clk 0:01:54]}  Kxd8 {[%clk 0:01:32]} 19. Bf4 {[%clk 0:01:50]}  Kc8 {[%clk 0:01:24]} 20. Rc1 {[%clk 0:01:46]}  Rd8 {[%clk 0:01:13]} 21. g4 {[%clk 0:01:14]}  Nd4 {[%clk 0:01:12]} 22. Nxd4 {[%clk 0:01:15]}  Rxd4 {[%clk 0:01:12]} 23. f3 {[%clk 0:01:15]}  Kd7 {[%clk 0:01:04]} 24. Kf2 {[%clk 0:01:10]}  Rd5 {[%clk 0:00:59]} 25. Ng3 {[%clk 0:01:00]}  Nxe5 {[%clk 0:00:47]} 26. Bxe5 {[%clk 0:00:47]}  Rxe5 {[%clk 0:00:48]} 27. Nf5 {[%clk 0:00:43]}  Bf6 {[%clk 0:00:43]} 28. Rd1+ {[%clk 0:00:41]}  Kc7 {[%clk 0:00:41]} 29. Nd6 {[%clk 0:00:35]}  Re7 {[%clk 0:00:32]} 30. b3 {[%clk 0:00:30]}  a6 {[%clk 0:00:29]} 31. Ne4 {[%clk 0:00:27]}  Be5 {[%clk 0:00:25]} 32. Rd5 {[%clk 0:00:26]}  Kb6 {[%clk 0:00:22]} 33. Ke3 {[%clk 0:00:25]}  Bc3 {[%clk 0:00:22]} 34. Kd3 {[%clk 0:00:24]}  Kc6 {[%clk 0:00:17]} 35. Rd6+ {[%clk 0:00:21]}  Kc7 {[%clk 0:00:17]} 36. Rd5 {[%clk 0:00:21]}  Kc6 {[%clk 0:00:17]} 37. Rc5+ {[%clk 0:00:22]}  Kb6 {[%clk 0:00:17]} 38. Kc4 {[%clk 0:00:19]}  Rd7 {[%clk 0:00:16]} 39. Rd5 {[%clk 0:00:18]}  Re7 {[%clk 0:00:14]} 40. a4 {[%clk 0:00:17]}  Rc7+ {[%clk 0:00:11]} 41. Kd3 {[%clk 0:00:17]}  Re7 {[%clk 0:00:12]} 42. a5+ {[%clk 0:00:17]}  Ka7 {[%clk 0:00:12]} 43. Kc4 {[%clk 0:00:16]}  Rc7+ {[%clk 0:00:12]} 44. Rc5 {[%clk 0:00:16]}  Rd7 {[%clk 0:00:12]} 45. Rd5 {[%clk 0:00:16]}  Rc7+ {[%clk 0:00:12]} 46. Kd3 {[%clk 0:00:17]}  Re7 {[%clk 0:00:12]} 47. Nd6 {[%clk 0:00:17]}  f6 {[%clk 0:00:09]} 48. Nc8+ {[%clk 0:00:17]} 1-0


[Site "https://www.chess.com"]

[Event "Titled Tuesday Blitz April 25 Early 2023"]
[White "Rios Escobar, Adan"]
[Black "Chernobay, Artem"]
[WhiteFideId "3403645"]
[BlackFideId "4167406"]
[WhiteElo "2491"]
[BlackElo "2474"]
[Result "1-0"]
[Round "06"]
[TimeControl "180+2"]
[Date "2023.04.25"]
[WhiteClock "0:00:04"]
[BlackClock "0:00:08"]

1. d4 {[%clk 0:02:57]}  Nf6 {[%clk 0:02:59]} 2. g3 {[%clk 0:02:54]}  c5 {[%clk 0:02:56]} 3. d5 {[%clk 0:02:54]}  e6 {[%clk 0:02:56]} 4. c4 {[%clk 0:02:52]}  exd5 {[%clk 0:02:56]} 5. cxd5 {[%clk 0:02:53]}  d6 {[%clk 0:02:56]} 6. Nc3 {[%clk 0:02:53]}  a6 {[%clk 0:02:55]} 7. a4 {[%clk 0:02:53]}  g6 {[%clk 0:02:53]} 8. Nf3 {[%clk 0:02:53]}  Bg7 {[%clk 0:02:53]} 9. Bg2 {[%clk 0:02:54]}  O-O {[%clk 0:02:54]} 10. O-O {[%clk 0:02:55]}  Re8 {[%clk 0:02:54]} 11. Re1 {[%clk 0:02:54]}  Ne4 {[%clk 0:02:47]} 12. Nxe4 {[%clk 0:02:54]}  Rxe4 {[%clk 0:02:48]} 13. Qc2 {[%clk 0:02:55]}  Rb4 {[%clk 0:02:46]} 14. Nd2 {[%clk 0:02:44]}  Nd7 {[%clk 0:02:42]} 15. e4 {[%clk 0:02:35]}  Rb8 {[%clk 0:02:33]} 16. f4 {[%clk 0:02:15]}  b5 {[%clk 0:02:29]} 17. axb5 {[%clk 0:02:13]}  R8xb5 {[%clk 0:02:25]} 18. Ra2 {[%clk 0:02:04]}  c4 {[%clk 0:01:56]} 19. Nxc4 {[%clk 0:01:48]}  Nc5 {[%clk 0:01:22]} 20. e5 {[%clk 0:01:41]}  Bf5 {[%clk 0:01:20]} 21. Qc3 {[%clk 0:01:23]}  dxe5 {[%clk 0:01:04]} 22. fxe5 {[%clk 0:01:00]}  Nd3 {[%clk 0:01:03]} 23. Nd6 {[%clk 0:00:34]}  Rb3 {[%clk 0:00:52]} 24. Qd2 {[%clk 0:00:12]}  Bxe5 {[%clk 0:00:42]} 25. Nxb5 {[%clk 0:00:10]}  axb5 {[%clk 0:00:37]} 26. Rxe5 {[%clk 0:00:07]}  Nxe5 {[%clk 0:00:37]} 27. d6 {[%clk 0:00:06]}  Rd3 {[%clk 0:00:35]} 28. Ra8 {[%clk 0:00:05]}  Bc8 {[%clk 0:00:31]} 29. Qc2 {[%clk 0:00:03]}  Qb6+ {[%clk 0:00:27]} 30. Kh1 {[%clk 0:00:03]}  Kg7 {[%clk 0:00:27]} 31. Rxc8 {[%clk 0:00:02]}  Ng4 {[%clk 0:00:26]} 32. h3 {[%clk 0:00:02]}  Nf2+ {[%clk 0:00:23]} 33. Kh2 {[%clk 0:00:02]}  Qxd6 {[%clk 0:00:24]} 34. Qxf2 {[%clk 0:00:02]}  Rd1 {[%clk 0:00:23]} 35. Rc2 {[%clk 0:00:03]}  h5 {[%clk 0:00:22]} 36. Bf4 {[%clk 0:00:03]}  Qe6 {[%clk 0:00:22]} 37. Qe2 {[%clk 0:00:03]}  Qd7 {[%clk 0:00:21]} 38. Be5+ {[%clk 0:00:03]}  Kh7 {[%clk 0:00:21]} 39. Bc3 {[%clk 0:00:03]}  h4 {[%clk 0:00:19]} 40. Qe5 {[%clk 0:00:03]}  hxg3+ {[%clk 0:00:19]} 41. Qxg3 {[%clk 0:00:04]}  Rd5 {[%clk 0:00:11]} 42. Rf2 {[%clk 0:00:03]}  Rc5 {[%clk 0:00:10]} 43. Qh4+ {[%clk 0:00:03]}  Rh5 {[%clk 0:00:09]} 44. Qf4 {[%clk 0:00:03]}  Kg8 {[%clk 0:00:09]} 45. Qd4 {[%clk 0:00:03]}  Qc7+ {[%clk 0:00:09]} 46. Kg1 {[%clk 0:00:01]}  Kf8 {[%clk 0:00:09]} 47. Qg7+ {[%clk 0:00:01]}  Ke8 {[%clk 0:00:10]} 48. Re2+ {[%clk 0:00:02]}  Kd8 {[%clk 0:00:10]} 49. Qf8+ {[%clk 0:00:03]}  Kd7 {[%clk 0:00:10]} 50. Rd2+ {[%clk 0:00:03]}  Ke6 {[%clk 0:00:10]} 51. Qe8+ {[%clk 0:00:03]}  Kf5 {[%clk 0:00:09]} 52. Rf2+ {[%clk 0:00:03]}  Kg5 {[%clk 0:00:09]} 53. Qe3+ {[%clk 0:00:04]}  Kh4 {[%clk 0:00:09]} 54. Qe4+ {[%clk 0:00:04]}  Kg5 {[%clk 0:00:08]} 55. Bd2+ {[%clk 0:00:04]} 1-0


[Site "https://www.chess.com"]

[Event "Titled Tuesday Blitz April 25 Early 2023"]
[White "Mamedov, Edgar"]
[Black "Heinemann, Josefine"]
[WhiteFideId "13739980"]
[BlackFideId "12900460"]
[WhiteElo "2330"]
[BlackElo "2342"]
[Result "1-0"]
[Round "06"]
[TimeControl "180+2"]
[Date "2023.04.25"]
[WhiteClock "0:02:06"]
[BlackClock "0:00:34"]

1. d4 {[%clk 0:02:59]}  d5 {[%clk 0:02:56]} 2. Bg5 {[%clk 0:02:59]}  h6 {[%clk 0:02:55]} 3. Bh4 {[%clk 0:02:59]}  c6 {[%clk 0:02:54]} 4. c3 {[%clk 0:02:53]}  Bf5 {[%clk 0:02:48]} 5. Nd2 {[%clk 0:02:53]}  g5 {[%clk 0:02:46]} 6. Bg3 {[%clk 0:02:53]}  e6 {[%clk 0:02:47]} 7. h4 {[%clk 0:02:49]}  Bg7 {[%clk 0:02:46]} 8. hxg5 {[%clk 0:02:49]}  hxg5 {[%clk 0:02:47]} 9. Rxh8 {[%clk 0:02:50]}  Bxh8 {[%clk 0:02:46]} 10. Ngf3 {[%clk 0:02:47]}  g4 {[%clk 0:02:43]} 11. Ne5 {[%clk 0:02:46]}  Nd7 {[%clk 0:02:40]} 12. Nxd7 {[%clk 0:02:44]}  Qxd7 {[%clk 0:02:41]} 13. e3 {[%clk 0:02:44]}  Nf6 {[%clk 0:02:39]} 14. Qa4 {[%clk 0:02:39]}  Ne4 {[%clk 0:02:33]} 15. Nxe4 {[%clk 0:02:39]}  Bxe4 {[%clk 0:02:34]} 16. O-O-O {[%clk 0:02:39]}  a5 {[%clk 0:02:19]} 17. Be2 {[%clk 0:02:36]}  b5 {[%clk 0:02:16]} 18. Qa3 {[%clk 0:02:35]}  Bf6 {[%clk 0:01:33]} 19. Bd6 {[%clk 0:02:21]}  Be7 {[%clk 0:01:20]} 20. Bc5 {[%clk 0:02:16]}  Bxg2 {[%clk 0:01:01]} 21. Rg1 {[%clk 0:02:11]}  Bh3 {[%clk 0:00:38]} 22. Bxg4 {[%clk 0:02:06]}  Bxg4 {[%clk 0:00:38]} 23. Rxg4 {[%clk 0:02:06]}  Kf8 {[%clk 0:00:33]} 24. Bxe7+ {[%clk 0:02:05]}  Qxe7 {[%clk 0:00:34]} 25. Rg8+ {[%clk 0:02:06]} 1-0


[Site "https://www.chess.com"]